[Event "FIDE WCCC U8 2018"]
[Site "Santiago de Compostela"]
[Date "2018.11.12"]
[Round "8"]
[White "Yuruultei Batbaatar"]
[Black "Balint, Peter"]
[Result "0-1"]
[ECO "D20"]
[WhiteElo "1135"]
[BlackElo "1563"]
[Annotator "NA RC"]
[PlyCount "124"]
[EventDate "2018.11.04"]
[EventType "swiss"]
[EventCountry "ESP"]
[SourceTitle "playchess.com"]
[Source "ChessBase"]
[SourceQuality "1"]
[TimeControl "40/5400+30:1800+30"]

1. d4 {[%emt 0:00:16]} d5 {[%emt 0:00:08]} 2. c4 {[%emt 0:00:56]} dxc4 {[%emt 0:00:13]} 3. e3 {[%emt 0:01:28]} e5 {[%emt 0:01:31]} 4. Nf3 {[%emt 0:05:27]} exd4 {[%emt 0:14:57]} 5. Qxd4 {[%emt 0:07:47]} Qxd4 {[%emt 0:03:13]} 6. Nxd4 {[%emt 0:01:14]} Bb4+ {[%emt 0:07:48]} 7. Bd2 {[%emt 0:06:46]} Bxd2+ {[%emt 0:05:14]} 8. Nxd2 {[%emt 0:00:45]} Bd7 9. Bxc4 {[%emt 0:09:37]} Nf6 {[%emt 0:09:39]} 10. O-O {[%emt 0:01:42]} O-O {[%emt 0:03:13]} 11. N2f3 {[%emt 0:01:59]} Nc6 {[%emt 0:10:34]} 12. a3 {[%emt 0:04:55]} h6 {[%emt 0:08:08]} 13. Rfd1 {[%emt 0:02:54]} Nxd4 {[%emt 0:11:52]} 14. Rxd4 {[%emt 0:02:39]} Bf5 {[%emt 0:04:06]} 15. Ne5 {[%emt 0:11:34]} Rae8 {[%emt 0:06:20]} 16. Nf3 {[%emt 0:03:19]} g5 {[%emt 0:03:49]} 17. Rad1 {[%emt 0:08:11]} c5 {[%emt 0:02:19]} 18. R4d2 {[%emt 0:03:48]} Ne4 {[%emt 0:00:20]} 19. Re2 {[%emt 0:01:11]} Rd8 {[%emt 0:00:17]} 20. Ree1 {[%emt 0:00:37]} Kg7 {[%emt 0:01:48]} 21. Kf1 {[%emt 0:05:55]} g4 {[%emt 0:01:04]} 22. Ng1 {[%emt 0:00:39]} Nd2+ {[%emt 0:00:08]} 23. Rxd2 {[%emt 0:02:00]} Rxd2 {[%emt 0:00:04]} 24. Re2 {[%emt 0:01:59]} Rd1+ {[%emt 0:00:37]} 25. Re1 {[%emt 0:00:35]} Rfd8 {[%emt 0:00:48]} 26. Ne2 {[%emt 0:00:59]} Bc2 {[%emt 0:00:38]} 27. Nf4 {[%emt 0:00:47]} Rxe1+ {[%emt 0:00:14]} 28. Kxe1 {[%emt 0:00:36]} Rd1+ {[%emt 0:00:04]} 29. Ke2 {[%emt 0:00:08]} Rb1 {[%emt 0:00:56]} 30. Kd2 {[%emt 0:00:23]} Bf5 {[%emt 0:00:24]} 31. b3 {[%emt 0:01:09]} Rh1 {[%emt 0:00:33]} 32. Nh5+ {[%emt 0:00:42]} Kg6 {[%emt 0:00:32]} 33. Nf4+ {[%emt 0:00:08]} Kf6 {[%emt 0:00:22]} 34. Nh5+ {[%emt 0:00:09]} Kg5 {[%emt 0:00:46]} 35. Bxf7 {[%emt 0:00:31]} Rxh2 {[%emt 0:00:19]} 36. Nf4 {[%emt 0:00:45]} Kf6 {[%emt 0:00:53]} 37. Bd5 {[%emt 0:00:47]} b6 {[%emt 0:00:18]} 38. Nd3 {[%emt 0:01:01]} Bxd3 39. Kxd3 {[%emt 0:00:58]} Rh1 {[%emt 0:00:51]} 40. Bc4 {[%emt 0:00:00]} Ra1 {[%emt 0:00:00]} 41. a4 {[%emt 0:02:38]} h5 {[%emt 0:03:52]} 42. Ke4 {[%emt 0:01:32]} Rd1 {[%emt 0:03:31]} 43. f3 {[%emt 0:01:51]} Kg5 {[%emt 0:02:49]} 44. Be6 {[%emt 0:01:17]} Rd2 {[%emt 0:01:02]} 45. g3 {[%emt 0:01:02]} Rg2 {[%emt 0:01:18]} 46. Bf7 {[%emt 0:02:34]} Rxg3 {[%emt 0:00:42]} 47. f4+ {[%emt 0:00:10]} Kh6 {[%emt 0:00:54]} 48. f5 {[%emt 0:00:32]} h4 {[%emt 0:00:13]} 49. Kf4 {[%emt 0:00:14]} Rg1 {[%emt 0:00:22]} 50. e4 {[%emt 0:00:08]} h3 {[%emt 0:00:27]} 51. e5 {[%emt 0:01:06]} h2 {[%emt 0:00:10]} 52. Bd5 {[%emt 0:00:09]} g3 {[%emt 0:00:43]} 53. e6 {[%emt 0:00:15]} g2 {[%emt 0:00:12]} 54. e7 {[%emt 0:00:48]} h1=Q {[%emt 0:00:13]} 55. e8=Q Rf1+ 56. Ke5 {[%emt 0:01:21]} Re1+ {[%emt 0:00:38]} 57. Be4 {[%emt 0:00:16]} Rxe4+ {[%emt 0:00:04]} 58. Kxe4 {[%emt 0:00:12]} g1=Q+ {[%emt 0:00:05]} 59. Kd3 {[%emt 0:00:13]} Qd5+ {[%emt 0:00:08]} 60. Kc2 {[%emt 0:00:11]} Qgd1+ {[%emt 0:00:27]} 61. Kb2 {[%emt 0:00:21]} Q5d4+ {[%emt 0:01:09]} 62. Ka2 {[%emt 0:00:44]} Q1a1# 0-1

[Event "FIDE WCCC U8 2018"]
[Site "Santiago de Compostela"]
[Date "2018.11.13"]
[Round "9"]
[White "Finek, Vaclav"]
[Black "Chen, Zhiyuan"]
[Result "1-0"]
[ECO "D76"]
[WhiteElo "1942"]
[BlackElo "1459"]
[Annotator "NA RC"]
[PlyCount "126"]
[EventDate "2018.11.04"]
[EventType "swiss"]
[EventCountry "ESP"]
[SourceTitle "playchess.com"]
[Source "ChessBase"]
[SourceQuality "1"]
[TimeControl "40/5400+30:1800+30"]

1. d4 {[%emt 0:00:00]} Nf6 {[%emt 0:00:00]} 2. c4 {[%emt 0:00:00]} g6 {[%emt 0:00:00]} 3. Nf3 {[%emt 0:00:00]} Bg7 {[%emt 0:00:04]} 4. g3 {[%emt 0:00:00]} O-O {[%emt 0:00:14]} 5. Bg2 {[%emt 0:00:00] LiveBook: 13853 Games} d5 {[%emt 0:01:04]} 6. cxd5 {[%emt 0:00:16]} Nxd5 {[%emt 0:00:30]} 7. O-O {[%emt 0:00:00]} Nb6 {[%emt 0:00:00]} 8. Nc3 {[%emt 0:00:00]} Nc6 {[%emt 0:00:00]} 9. e3 {[%emt 0:00:02]} Re8 {[%emt 0:00:02]} 10. d5 {[%emt 0:03:21]} Ne5 {[%emt 0:00:30] D76: Fianchetto Grünfeld: Main Line with 7...Nb6} (10... Na5 11. Nd4 Bd7 12. b4 Nac4 13. Qc2 Qc8 14. Rd1 Bh3 15. Bh1 a5 16. b5 Bg4 17. Nce2 e5 18. dxe6 fxe6 19. Rb1 e5 20. Nb3 {0-1 (37) Jobava,B (2714)-Maghsoodloo,P (2584) Bandar e Anzali 2017}) 11. Nd4 {[%emt 0:00:16]} Bd7 {[%emt 0:33:35]} 12. Qe2 $146 {[%emt 0:18:11]} ({Predecessor:} 12. f4 Bg4 13. Qc2 Nec4 14. h3 Bxd4 15. exd4 Bf5 16. Qd1 Nd6 17. a4 a5 18. b3 {1-0 (43) Baklanov,V (2479)-Larin,I (2307) ICCF email 2009}) 12... e6 {[%emt 0:16:33]} (12... c5 $11 {hält das Gleichgewicht.} 13. dxc6 Nxc6) 13. dxe6 $16 {[%emt 0:01:05] and life is bright.} (13. Nxe6 $2 {[%emt 0:01:23][%mdl 8192]}) 13... Bxe6 {[%emt 0:00:54]} 14. Nxe6 {[%emt 0:00:48]} Rxe6 {[%emt 0:00:19]} 15. Rd1 {[%emt 0:15:09]} (15. Bxb7) 15... Qe7 {[%emt 0:05:49]} 16. e4 {[%emt 0:05:32]} f5 {[%emt 0:06:20]} 17. Nd5 $2 {[%emt 0:00:30]} (17. exf5 $18 gxf5 18. Nd5 (18. Bxb7 Ng4 $16)) 17... Nxd5 {[%emt 0:00:30]} 18. Rxd5 {[%emt 0:00:30]} (18. exf5 $16 Nf3+ 19. Qxf3 Re1+ 20. Bf1 Rxd1 21. Qxd1) 18... Nc6 {[%emt 0:00:30]} (18... fxe4 $11 {hält das Gleichgewicht.} 19. Be3 Nd3) 19. Qc4 {[%emt 0:26:25]} (19. Bf4 $16) 19... fxe4 {[%emt 0:12:57]} 20. Bh3 {[%emt 0:02:51]} Kh8 {[%emt 0:08:12]} 21. Bg5 {[%emt 0:06:35]} Rf6 {[%emt 0:00:30]} 22. Bxf6 {[%emt 0:00:30]} Qxf6 {[%emt 0:06:27]} 23. Qxe4 {[%emt 0:02:35]} Qxb2 {[%emt 0:00:39]} 24. Re1 {[%emt 0:02:22]} Rf8 {[%emt 0:03:52]} 25. Qe2 {[%emt 0:03:57]} Qb6 {[%emt 0:00:41]} 26. Bg2 {[%emt 0:02:49]} Bd4 {[%emt 0:01:44]} 27. Rf1 {[%emt 0:00:11]} a6 {[%emt 0:00:31]} 28. h4 {[%emt 0:01:33]} Nb4 {[%emt 0:00:32]} 29. Rd7 {[%emt 0:00:43]} Qf6 {[%emt 0:00:40]} 30. Qe7 {[%emt 0:02:32]} Qxe7 {[%emt 0:00:06]} 31. Rxe7 {[%emt 0:00:06]} c5 {[%emt 0:00:21]} 32. Bxb7 {[%emt 0:01:25]} Nd3 {[%emt 0:00:05]} 33. Bxa6 {[%emt 0:00:40]} Ne5 {[%emt 0:00:49]} 34. a4 {[%emt 0:01:00]} Nf3+ {[%emt 0:00:29]} 35. Kh1 {[%emt 0:01:28]} Nd2 {[%emt 0:00:17]} 36. Rd1 {[%emt 0:00:21]} Rxf2 {[%emt 0:01:32]} 37. Re2 {[%emt 0:00:25]} Rxe2 {[%emt 0:00:06]} 38. Bxe2 {[%emt 0:00:02]} Nb3 {[%emt 0:00:06]} (38... Bc3 $142 39. Kg2 Bb4) 39. Rb1 {[%emt 0:00:42]} Nd2 {[%emt 0:00:13]} (39... Na5 $142 40. Rb5 Bc3 41. Rxc5 Be1) 40. Rb8+ {[%emt 0:00:00]} Kg7 {[%emt 0:00:00]} 41. Kg2 {[%emt 0:01:11]} c4 {[%emt 0:00:49]} 42. a5 {[%emt 0:00:30]} Nb3 {[%emt 0:08:41]} 43. a6 {[%emt 0:04:58]} Na5 {[%emt 0:00:30]} (43... c3 {[%emt 0:00:30]}) 44. Rc8 {[%emt 0:01:49]} c3 {[%emt 0:03:14]} 45. Rxc3 {[%emt 0:01:56]} Bb6 {[%emt 0:02:25]} 46. a7 {[%emt 0:00:13]} Bxa7 {[%emt 0:00:03]} 47. Rc7+ {[%emt 0:00:09]} Kf6 {[%emt 0:00:01]} 48. Rxa7 {[%emt 0:00:01]} Nb3 {[%emt 0:00:08]} 49. Rxh7 {[%emt 0:00:18]} Nd4 {[%emt 0:00:02]} 50. Bc4 {[%emt 0:00:19]} Nf5 $18 {[%emt 0:00:22]} 51. Rf7+ {[%emt 0:00:42]} Ke5 {[%emt 0:00:05]} 52. Rxf5+ {[%emt 0:00:30]} Kxf5 {[%emt 0:00:30]} 53. Kf3 {[%emt 0:00:02]} Ke5 {[%emt 0:00:08]} 54. Kg4 {[%emt 0:00:12]} Kf6 {[%emt 0:00:06]} 55. Bd3 {[%emt 0:00:14]} Kg7 {[%emt 0:00:12]} 56. Kg5 {[%emt 0:00:01]} Kh7 {[%emt 0:00:10]} 57. Bxg6+ {[%emt 0:00:08]} Kg7 {[%emt 0:00:03]} 58. h5 {[%emt 0:00:11]} Kh8 {[%emt 0:00:11]} 59. Kf6 {[%emt 0:00:04]} Kg8 {[%emt 0:00:06]} 60. g4 {[%emt 0:00:26]} Kh8 {[%emt 0:00:28]} 61. g5 {[%emt 0:01:22]} Kg8 {[%emt 0:00:07]} 62. h6 {[%emt 0:00:10]} Kh8 {[%emt 0:00:05]} 63. Bc2 {[%emt 0:00:24]} Kg8 {[%emt 0:00:00]} 1-0

[Event "FIDE WCCC U8 2018"]
[Site "Santiago de Compostela"]
[Date "2018.11.13"]
[Round "9"]
[White "Nurgaliyev, Sauat"]
[Black "Lam, Chun Yung Samuel"]
[Result "1-0"]
[ECO "D02"]
[WhiteElo "1764"]
[BlackElo "1309"]
[Annotator "NA RC"]
[PlyCount "79"]
[EventDate "2018.11.04"]
[EventType "swiss"]
[EventCountry "ESP"]
[SourceTitle "playchess.com"]
[Source "ChessBase"]
[SourceQuality "1"]
[TimeControl "40/5400+30:1800+30"]

1. d4 {[%emt 0:00:00]} d5 {[%emt 0:00:01]} 2. Nf3 {[%emt 0:00:00]} c5 {[%emt 0:00:31]} 3. g3 {[%emt 0:02:26]} Nf6 {[%emt 0:01:53]} 4. Bg2 {[%emt 0:01:20]} Bg4 {[%emt 0:03:52]} 5. c4 {[%emt 0:03:37]} e6 {[%emt 0:00:39]} 6. Ne5 {[%emt 0:04:24]} Bh5 {[%emt 0:00:41]} 7. Qa4+ {[%emt 0:08:56]} Nbd7 {[%emt 0:08:00]} 8. Bg5 {[%emt 0:14:18]} Be7 {[%emt 0:13:33]} 9. cxd5 {[%emt 0:12:23]} exd5 {[%emt 0:01:30]} 10. Bh3 {[%emt 0:06:54]} b5 {[%emt 0:07:31]} 11. Qxb5 {[%emt 0:13:02]} Rb8 {[%emt 0:00:25]} 12. Qc6 {[%emt 0:02:13]} Rb6 {[%emt 0:02:47]} 13. Bxd7+ {[%emt 0:02:18]} Nxd7 {[%emt 0:00:26]} 14. Qxd7+ {[%emt 0:05:31]} Qxd7 {[%emt 0:00:30]} 15. Nxd7 {[%emt 0:00:02]} Kxd7 {[%emt 0:00:17]} 16. Bxe7 {[%emt 0:00:35]} Kxe7 {[%emt 0:00:08]} 17. dxc5 {[%emt 0:01:15]} Rxb2 {[%emt 0:00:26]} 18. Nc3 {[%emt 0:00:43]} Ke6 {[%emt 0:01:24]} 19. f3 {[%emt 0:01:09]} Rc2 {[%emt 0:01:40]} 20. Nd1 {[%emt 0:02:46]} Rb8 {[%emt 0:01:14]} 21. Ne3 {[%emt 0:02:45]} Rxc5 {[%emt 0:00:47]} 22. Kf2 {[%emt 0:00:51]} Rb2 {[%emt 0:01:30]} 23. Rhd1 {[%emt 0:04:47]} Ke5 {[%emt 0:02:24]} 24. Rdb1 {[%emt 0:05:10]} Rcb5 {[%emt 0:01:17]} 25. Rd1 {[%emt 0:00:41]} R2b4 {[%emt 0:02:44]} 26. Rac1 {[%emt 0:02:07]} d4 {[%emt 0:01:29]} 27. f4+ {[%emt 0:01:48]} Ke6 {[%emt 0:02:08]} 28. Nc2 {[%emt 0:00:23]} Kd5 {[%emt 0:10:29]} 29. Nxb4+ {[%emt 0:00:05]} Rxb4 {[%emt 0:00:16]} 30. Rd2 {[%emt 0:01:25]} Bg6 {[%emt 0:03:06]} 31. Rc7 {[%emt 0:00:30]} Ra4 {[%emt 0:01:37]} 32. g4 {[%emt 0:00:43]} d3 {[%emt 0:01:03]} 33. f5 {[%emt 0:00:25]} Bxf5 {[%emt 0:03:11]} 34. gxf5 {[%emt 0:00:02]} Rf4+ {[%emt 0:00:22]} 35. Kg3 {[%emt 0:00:06]} Rxf5 {[%emt 0:00:05]} 36. Rxd3+ {[%emt 0:00:11]} Ke6 {[%emt 0:00:34]} 37. Rc6+ {[%emt 0:00:37]} Ke7 {[%emt 0:00:16]} 38. Rc7+ {[%emt 0:00:28]} Ke6 {[%emt 0:00:19]} 39. Rxa7 {[%emt 0:00:06]} Rg5+ {[%emt 0:00:40]} 40. Kf3 {[%emt 0:00:00] Kd5 Ke4+} 1-0

[Event "FIDE WCCC U8 2018"]
[Site "Santiago de Compostela"]
[Date "2018.11.13"]
[Round "9"]
[White "Schnaider, Ilan"]
[Black "Levitan, Caleb Levi"]
[Result "0-1"]
[ECO "B72"]
[WhiteElo "1723"]
[BlackElo "1087"]
[Annotator "NA RC"]
[PlyCount "98"]
[EventDate "2018.11.04"]
[EventType "swiss"]
[EventCountry "ESP"]
[SourceTitle "playchess.com"]
[Source "ChessBase"]
[SourceQuality "1"]
[TimeControl "40/5400+30:1800+30"]

1. e4 {[%emt 0:00:00]} c5 {[%emt 0:00:00]} 2. Nf3 {[%emt 0:00:20]} d6 {[%emt 0:00:00]} 3. d4 {[%emt 0:00:18]} cxd4 {[%emt 0:00:22]} 4. Nxd4 {[%emt 0:00:26]} Nf6 {[%emt 0:00:22]} 5. Nc3 {[%emt 0:00:28]} g6 {[%emt 0:00:22]} 6. Be3 {[%emt 0:00:30]} Bg7 {[%emt 0:00:14]} 7. g3 {[%emt 0:00:49]} Nc6 {[%emt 0:00:24]} 8. Bg2 {[%emt 0:00:27]} O-O {[%emt 0:00:28]} 9. O-O {[%emt 0:00:25]} Bd7 {[%emt 0:00:34]} 10. h3 {[%emt 0:00:59]} Rc8 {[%emt 0:03:18]} 11. Qe2 {[%emt 0:01:41]} Nxe4 {[%emt 0:03:22]} 12. Nxe4 {[%emt 0:03:30]} Nxd4 {[%emt 0:00:41]} 13. Bxd4 {[%emt 0:00:40]} Bxd4 {[%emt 0:00:17]} 14. c3 {[%emt 0:00:17]} Bg7 {[%emt 0:03:14]} 15. Rfe1 {[%emt 0:01:00]} d5 {[%emt 0:02:46]} 16. Nd2 {[%emt 0:01:18]} e6 {[%emt 0:00:19]} 17. Rad1 {[%emt 0:01:49]} Qb6 {[%emt 0:02:26]} 18. Nf3 {[%emt 0:03:02]} Qb5 {[%emt 0:06:29]} 19. Qd2 {[%emt 0:03:25]} Qa5 {[%emt 0:07:54]} 20. Nd4 {[%emt 0:07:26]} Rc4 {[%emt 0:07:33]} 21. Bf1 {[%emt 0:07:26]} Ra4 {[%emt 0:05:28]} 22. Nb3 {[%emt 0:03:36]} Qb6 {[%emt 0:03:51]} 23. Nc1 {[%emt 0:03:58]} Bb5 {[%emt 0:01:42]} 24. b3 {[%emt 0:00:54]} Ra6 {[%emt 0:01:26]} 25. Nd3 {[%emt 0:06:46]} Bxd3 {[%emt 0:01:43]} 26. Bxd3 {[%emt 0:00:28]} Ra3 {[%emt 0:00:41]} 27. Ra1 {[%emt 0:11:21]} Rc8 {[%emt 0:01:11]} 28. Qf4 {[%emt 0:15:36]} Qc7 {[%emt 0:01:51]} 29. Qb4 {[%emt 0:01:03]} Ra5 {[%emt 0:04:24]} 30. c4 {[%emt 0:01:10]} Bxa1 {[%emt 0:02:32]} 31. Rxa1 {[%emt 0:00:08]} dxc4 {[%emt 0:03:07]} 32. bxc4 {[%emt 0:00:34]} Qb6 {[%emt 0:01:34]} 33. Qc3 {[%emt 0:00:22]} Rd5 {[%emt 0:02:37]} 34. Bf1 {[%emt 0:03:20]} Qd4 {[%emt 0:01:47]} 35. Qe1 {[%emt 0:00:55]} Re5 {[%emt 0:01:13]} 36. Qb1 {[%emt 0:00:38]} Rd8 {[%emt 0:03:24]} 37. Qc1 {[%emt 0:01:23]} Rf5 {[%emt 0:01:06]} 38. Qe1 {[%emt 0:00:28]} Rxf2 {[%emt 0:00:35]} 39. Qxf2 {[%emt 0:00:15]} Qxa1 {[%emt 0:00:13]} 40. Qxa7 {[%emt 0:00:00]} Qd4+ {[%emt 0:00:00]} 41. Qxd4 {[%emt 0:00:55]} Rxd4 {[%emt 0:00:29]} 42. Bg2 {[%emt 0:00:19]} Rxc4 {[%emt 0:00:21]} 43. Bxb7 {[%emt 0:00:10]} Ra4 {[%emt 0:00:29]} 44. Kf2 {[%emt 0:00:23]} Rxa2+ {[%emt 0:00:18]} 45. Kf3 {[%emt 0:00:48]} Kg7 {[%emt 0:00:24]} 46. Be4 {[%emt 0:00:00]} f5 {[%emt 0:00:47]} 47. Bd3 {[%emt 0:00:00]} e5 {[%emt 0:00:52]} 48. Bc4 {[%emt 0:00:00]} Rc2 {[%emt 0:01:06]} 49. Bf1 {[%emt 0:02:15]} e4+ {[%emt 0:00:47]} 0-1

[Event "FIDE WCCC U8 2018"]
[Site "Santiago de Compostela"]
[Date "2018.11.13"]
[Round "9"]
[White "Lu, Miaoyi"]
[Black "Azadaliyev, Jahandar"]
[Result "0-1"]
[ECO "A80"]
[WhiteElo "1717"]
[BlackElo "1674"]
[Annotator "NA RC"]
[PlyCount "76"]
[EventDate "2018.11.04"]
[EventType "swiss"]
[EventCountry "ESP"]
[SourceTitle "playchess.com"]
[Source "ChessBase"]
[SourceQuality "1"]
[TimeControl "40/5400+30:1800+30"]

1. d4 {[%emt 0:00:00]} f5 {[%emt 0:00:00]} 2. Bg5 {[%emt 0:00:00]} d6 {[%emt 0:00:53]} 3. e3 {[%emt 0:13:22]} g6 {[%emt 0:02:25]} 4. Nc3 {[%emt 0:03:32]} Bg7 {[%emt 0:02:57]} 5. h4 {[%emt 0:01:47]} h6 {[%emt 0:06:50]} 6. Bf4 {[%emt 0:00:40]} Nf6 {[%emt 0:00:23]} 7. Bd3 {[%emt 0:18:14]} Nbd7 {[%emt 0:04:12]} 8. Nge2 {[%emt 0:10:55]} c6 {[%emt 0:06:11]} 9. h5 {[%emt 0:05:44]} g5 {[%emt 0:00:41]} 10. Bg3 {[%emt 0:01:26]} Nb6 {[%emt 0:02:15]} 11. Qd2 {[%emt 0:02:13]} a5 {[%emt 0:01:52]} 12. O-O-O {[%emt 0:01:55]} Be6 {[%emt 0:01:56]} 13. Kb1 {[%emt 0:09:04]} Qd7 {[%emt 0:00:52]} 14. f4 {[%emt 0:04:04]} O-O-O {[%emt 0:04:01]} 15. e4 {[%emt 0:09:58]} fxe4 {[%emt 0:02:39]} 16. Nxe4 {[%emt 0:00:41]} Nxe4 {[%emt 0:00:15]} 17. Bxe4 {[%emt 0:00:17]} Bxa2+ {[%emt 0:00:33]} 18. Kxa2 {[%emt 0:04:44]} Qe6+ {[%emt 0:00:18]} 19. b3 {[%emt 0:00:50]} Qxe4 {[%emt 0:00:14]} 20. Nc3 {[%emt 0:03:00]} Qf5 {[%emt 0:01:09]} 21. fxg5 {[%emt 0:02:21]} hxg5 {[%emt 0:01:04]} 22. Rdf1 {[%emt 0:02:04]} Qg4 {[%emt 0:00:22]} 23. Ne2 {[%emt 0:02:40]} Rxh5 {[%emt 0:00:47]} 24. Rxh5 {[%emt 0:00:33]} Qxh5 {[%emt 0:00:09]} 25. Re1 {[%emt 0:00:48]} Qg6 {[%emt 0:02:20]} 26. Nc1 {[%emt 0:01:03]} Bf6 {[%emt 0:01:12]} 27. Nd3 {[%emt 0:00:36]} Qf5 {[%emt 0:04:37]} 28. Re2 {[%emt 0:00:17]} a4 {[%emt 0:01:41]} 29. Qc3 {[%emt 0:00:56]} Nd5 {[%emt 0:00:56]} 30. Qc4 {[%emt 0:00:15]} Qg4 {[%emt 0:00:45]} 31. Nf2 {[%emt 0:00:45]} Qxg3 32. Qxa4 {[%emt 0:00:42]} Nc3+ {[%emt 0:00:38]} 33. Kb2 {[%emt 0:00:02]} Nxa4+ {[%emt 0:00:01]} 34. bxa4 {[%emt 0:00:09]} Bxd4+ {[%emt 0:00:15]} 35. Ka2 {[%emt 0:00:04]} Qc3 {[%emt 0:00:14]} 36. Nd3 {[%emt 0:00:05]} Qa1+ {[%emt 0:00:13]} 37. Kb3 {[%emt 0:00:02]} Qb1+ {[%emt 0:00:07]} 38. Kc4 {[%emt 0:00:04]} e5 {[%emt 0:00:06]} 0-1

[Event "FIDE WCCC U8 2018"]
[Site "Santiago de Compostela"]
[Date "2018.11.13"]
[Round "9"]
[White "Udipi, Kala Kishan"]
[Black "Begmuratov, Khumoyun"]
[Result "0-1"]
[ECO "A51"]
[WhiteElo "1653"]
[BlackElo "1880"]
[Annotator "NA RC"]
[PlyCount "76"]
[EventDate "2018.11.04"]
[EventType "swiss"]
[EventCountry "ESP"]
[SourceTitle "playchess.com"]
[Source "ChessBase"]
[SourceQuality "1"]
[TimeControl "40/5400+30:1800+30"]

{[%evp 14,75,-33,-42,-27,-30,-25,-40,-18,-25,-23,-62,-18,-68,-33,-52,-40,-84,-47,-87,-71,-147,-63,-70,-56,-54,-69,-60,-35,-158,-137,-141,-53,-123,-110,-122,-129,32767,-101,-366,32767,-463,32767,32767,32767,-156,-142,-282,32767,-327,32767,-326,-359,32767,32767,-29993,-29994,-29996,-29997,32767,-29998,32767,-29999,-29999]} 1. d4 {[%emt 0:00:00]} Nf6 {[%emt 0:00:00]} 2. c4 {[%emt 0:00:00]} e5 {[%emt 0:00:07]} 3. e3 {[%emt 0:00:26]} exd4 {[%emt 0:02:04]} 4. exd4 {[%emt 0:00:28]} Bb4+ {[%emt 0:02:48]} 5. Bd2 {[%emt 0:00:46]} Bxd2+ {[%emt 0:00:36]} 6. Nxd2 {[%emt 0:00:22]} O-O {[%emt 0:00:52]} 7. Bd3 {[%emt 0:01:09]} d5 {[%emt 0:02:01] A51: Budapest Gambit, Fajarowicz Variation} 8. c5 {[%emt 0:00:54]} (8. Ne2 dxc4 9. Nxc4 Nc6 10. Ne3 Qd6 11. Qd2 Be6 12. O-O Rad8 13. Rfd1 Ng4 14. Nxg4 Bxg4 15. f3 {0-1 (27) Biocanin,G (2314)-Nestorovic,N (2393) Belgrade 2008}) 8... Nc6 {[%emt 0:04:25]} 9. Ne2 {[%emt 0:00:25]} Bg4 {[%emt 0:02:19]} 10. f3 {[%emt 0:00:14]} Bd7 {[%emt 0:00:11]} 11. O-O {[%emt 0:00:10]} Qe7 $146 {[%emt 0:01:34]} ({Predecessor:} 11... Nh5 12. Nb3 f5 13. Ng3 Nxg3 14. hxg3 Qg5 15. Kf2 {0-1 (28) Teriete,J (1567)-Schoebel,E (1703) Germany 2005}) 12. Nb3 {[%emt 0:03:31]} Qe3+ {[%emt 0:25:11]} 13. Kh1 {[%emt 0:00:36]} Rfe8 {[%emt 0:01:07]} 14. a3 {[%emt 0:00:30]} a5 {[%emt 0:08:10]} 15. Nbc1 {[%emt 0:08:36]} Kh8 {[%emt 0:07:20]} 16. Bc2 {[%emt 0:00:29]} Re7 {[%emt 0:01:23]} 17. h3 {[%emt 0:09:44]} ({White should play} 17. Ba4) 17... Rae8 {[%emt 0:04:17]} (17... Nh5 $19 18. Qd3 Qh6) 18. f4 $1 {[%emt 0:00:42]} Ne4 {[%emt 0:02:08]} 19. Bxe4 $1 {[%emt 0:01:06]} Qxe4 {[%emt 0:00:07]} 20. Nc3 {[%emt 0:00:33]} Qxd4 {[%emt 0:07:30]} 21. Qxd4 {[%emt 0:00:44]} (21. Nxd5 $15 Qxd1 22. Rxd1 Re1+ 23. Rxe1 Rxe1+ 24. Kh2) 21... Nxd4 {[%emt 0:00:05]} 22. Nxd5 {[%emt 0:00:14] [#]} Re1 {[%emt 0:00:06]} (22... Bb5 $1 $17 {[%cal Rb5f1]} 23. Rg1 Rd7) 23. Rxe1 {[%emt 0:00:13]} (23. Na2 $15 Rxa1 24. Rxa1) 23... Rxe1+ {[%emt 0:00:06]} 24. Kh2 {[%emt 0:00:10]} Nc2 {[%emt 0:01:50]} 25. Rb1 {[%emt 0:01:50]} Bc6 {[%emt 0:08:16]} 26. Nxc7 $2 {[%emt 0:01:29]} (26. Nc3 $17 {only move.}) 26... a4 {[%emt 0:01:42]} 27. Na8 {[%emt 0:00:46]} Be4 {[%emt 0:00:16]} 28. Nb6 {[%emt 0:00:52]} Nb4 {[%emt 0:00:39]} 29. Ra1 {[%emt 0:01:57]} Nd3 {[%emt 0:00:08]} 30. Nxd3 {[%emt 0:08:24]} (30. Nxa4 $17 Nxf4 31. Nb3) 30... Rxa1 {[%emt 0:00:19]} 31. Nb4 {[%emt 0:01:27]} Rf1 {[%emt 0:00:50]} 32. Kg3 {[%emt 0:00:25]} Rg1 {[%emt 0:01:15]} 33. Nxa4 {[%emt 0:00:21]} Rxg2+ {[%emt 0:00:06]} 34. Kh4 {[%emt 0:00:14]} Bf3 {[%emt 0:00:43]} 35. Nd3 {[%emt 0:01:23]} f6 {[%emt 0:00:18]} 36. f5 {[%emt 0:00:09]} g6 {[%emt 0:00:15]} 37. fxg6 {[%emt 0:00:22]} hxg6 {[%emt 0:00:05]} 38. Ne1 {[%emt 0:00:34]} g5# {[%emt 0:00:07]} 0-1